bitfinex-derivatives/quotes_ETHF0:USTF0_20250828
["timestamp","ask_amount","ask_price","bid_price","bid_amount"]
[1756412542970,0.40296,4466.7,4466.6,1.99835]
[1756412543867,0.40296,4466.7,4466.6,1.5954]
[1756412544968,0.40296,4466.7,4466.6,1.8274]
[1756412546066,1.90416,4466.7,4466.6,1.5954]
[1756412546371,1.90416,4466.7,4466.6,1.8274]
[1756412546571,0.79176,4466.7,4466.6,1.8274]
[1756412546971,1.90416,4466.7,4466.6,1.8274]
[1756412547270,1.90416,4466.7,4466.6,0.232]
[1756412547468,0.403,4466.2,4466.1,1.60478112]
[1756412547675,0.403,4466.2,4466.1,3.74698291]
[1756412547875,0.403,4466.2,4466.1,2.23748112]
[1756412548072,0.403,4466.2,4466.1,3.43218112]
[1756412548375,0.403,4466.2,4466.1,1.8274]
[1756412548575,0.403,4466.2,4466.1,1.5954]
[1756412548780,0.403,4466.2,4466.1,1.8274]
[1756412549880,0.7918,4466.2,4466.1,1.5954]
[1756412550077,1.9042,4466.2,4466.1,1.8274]
[1756412550475,0.7918,4466.2,4466.1,1.8274]
[1756412551080,0.7918,4466.2,4466.1,1.5954]
[1756412551276,0.7918,4466.2,4466.1,1.8274]
[1756412551577,0.7918,4466.2,4466.1,1.5954]
[1756412551782,1.9042,4466.2,4466.1,1.5954]
[1756412552081,0.79184,4465.8,4465.7,1.1947]
[1756412552283,1.90424,4465.8,4465.7,1.8274]
[1756412552781,0.40289,4467.4,4467.3,0.4007]
[1756412552975,0.40289,4467.4,4467.3,1.8274]
[1756412554683,1.90409,4467.4,4467.3,1.8274]
[1756412555078,0.40289,4467.4,4467.3,1.8274]
[1756412556788,1.86969,4467.4,4467.3,1.5954]
[1756412557681,1.86969,4467.4,4467.3,1.4267]
[1756412557880,0.40296,4466.7,4466.6,3.99476738]
[1756412558081,2.24566,4466.7,4466.6,2.2159]
[1756412558286,0.40296,4466.7,4466.6,2.2159]
[1756412560090,0.40296,4466.7,4466.6,6.2159]
[1756412560987,0.40296,4466.7,4466.6,1.9839]
[1756412561186,1.16766,4466.7,4466.6,2.2159]
[1756412561491,2.24566,4466.7,4466.6,1.9839]
[1756412561689,0.40296,4466.7,4466.6,2.2159]
[1756412562087,1.8427,4466.7,4466.0,2.01086738]
[1756412562390,2.24573,4465.9,4465.8,1.0367]
[1756412562688,2.24573,4465.9,4465.8,2.2159]
[1756412564187,0.40303,4465.9,4465.8,2.2159]
[1756412565888,2.24573,4465.9,4465.8,1.9839]
[1756412566194,0.40311,4465.0,4464.9,2.81556738]
[1756412566389,0.40311,4465.0,4464.9,1.0367]
[1756412566588,0.40311,4465.0,4464.9,5.96250179]
[1756412567189,1.16781,4465.0,4464.9,4.221]
[1756412567390,0.40311,4465.0,4464.9,4.453]
[1756412567991,0.40311,4465.0,4464.9,4.221]
[1756412568298,0.40311,4465.0,4464.9,4.453]
[1756412568491,0.40311,4465.0,4464.9,5.96250179]
[1756412568689,0.4031,4465.1,4465.0,1.1792]
[1756412568888,0.403,4466.2,4466.1,0.8047]
[1756412569092,0.403,4466.2,4466.1,2.2159]
[1756412570592,1.00735,4467.0,4466.2,1.1792]
[1756412570593,0.40299,4466.3,4466.2,1.1792]
[1756412570797,0.40299,4466.3,4466.2,3.49340179]
[1756412571093,0.40299,4466.3,4466.2,5.73050179]
[1756412571792,0.40299,4466.3,4466.2,5.96250179]
[1756412571994,0.40299,4466.3,4466.2,5.73050179]
[1756412572199,0.40299,4466.3,4466.2,5.96250179]
[1756412572992,0.40299,4466.3,4466.2,5.73050179]
[1756412573191,0.40299,4466.3,4466.2,2.2159]
[1756412573698,0.40299,4466.3,4466.2,3.72540179]
[1756412574399,0.40299,4466.3,4466.2,5.96250179]
[1756412575000,0.40299,4466.3,4466.2,5.73050179]
[1756412575200,0.40299,4466.3,4466.2,5.96250179]
[1756412575395,1.16769,4466.3,4466.2,5.96250179]
[1756412576195,1.16769,4466.3,4466.2,5.73050179]
[1756412576389,1.16769,4466.3,4466.2,5.96250179]
[1756412576590,0.40299,4466.3,4466.2,5.96250179]
[1756412579303,0.40299,4466.3,4466.2,6.36550179]
[1756412579897,0.40299,4466.3,4466.2,5.96250179]
[1756412580804,2.01441,4467.6,4466.2,5.96250179]
[1756412580805,1.078,4467.6,4467.3,0.8047]
[1756412581099,0.40289,4467.4,4467.3,2.31420179]
[1756412581304,0.40289,4467.4,4467.3,1.0367]
[1756412581506,0.40289,4467.4,4467.3,2.2159]
[1756412586910,2.23389,4467.4,4467.3,1.9839]
[1756412587110,2.23389,4467.4,4467.3,2.2159]
[1756412588413,0.40297,4466.5,4466.4,1.15018]
[1756412588709,0.40297,4466.5,4466.4,2.50638]
[1756412588911,0.40297,4466.5,4466.4,6.25298179]
[1756412589311,0.40297,4466.5,4466.4,5.85000179]
[1756412589513,0.40297,4466.5,4465.3,1.00769]
[1756412589514,0.40306,4465.5,4465.4,2.01086738]
[1756412589705,0.40306,4465.5,4465.4,3.38090179]
[1756412589910,0.40306,4465.5,4465.4,5.85000179]
[1756412590711,0.40306,4465.5,4465.4,5.61800179]
[1756412591010,0.40306,4465.5,4465.4,5.85000179]
[1756412594822,0.40306,4465.5,4465.4,5.61800179]
[1756412595115,0.40312,4464.9,4464.8,0.7472]
[1756412595316,1.19832,4464.9,4464.8,0.9792]
[1756412595517,2.22572,4464.9,4464.8,0.9792]
[1756412595706,2.22572,4464.9,4464.8,2.1034]
[1756412595911,2.22572,4464.9,4464.8,1.8714]
[1756412596316,2.22572,4464.9,4464.8,2.1034]
[1756412598012,1.19832,4464.9,4464.8,2.1034]
[1756412598611,2.22572,4464.9,4464.8,2.1034]
[1756412602312,2.22572,4464.9,4463.7,32.25]
[1756412602313,0.40322,4463.8,4463.7,32.25]
[1756412602515,0.40322,4463.8,4463.7,33.6062]
[1756412602719,0.40322,4463.8,4463.7,37.35280179]
[1756412602910,1.43062,4463.8,4463.7,37.35280179]
[1756412603316,0.40322,4463.8,4463.7,37.35280179]
[1756412608320,1.43062,4463.8,4463.7,37.35280179]
[1756412609524,0.40322,4463.8,4463.7,37.35280179]
[1756412610320,1.00791,4464.4,4463.8,1.1242]
[1756412610626,0.40314,4464.7,4464.6,1.8714]
[1756412610812,0.40314,4464.7,4464.6,3.61290179]
[1756412611010,0.40314,4464.7,4464.6,2.1034]
[1756412611425,2.22568,4465.3,4465.2,1.8714]
[1756412611617,2.22568,4465.3,4465.2,2.1034]
[1756412612015,0.40319,4464.1,4464.0,2.27459]
[1756412612317,0.40319,4464.1,4464.0,2.1034]
[1756412612520,0.40319,4464.1,4464.0,5.61800179]
[1756412612724,0.40319,4464.1,4464.0,5.85000179]
[1756412613423,2.01544,4465.3,4464.0,5.85000179]
[1756412613424,0.40318,4464.2,4464.1,1.8714]
[1756412613617,0.40318,4464.2,4464.1,3.38090179]
[1756412613818,0.40318,4464.2,4464.1,2.1034]
[1756412614525,0.40317,4464.3,4464.2,2.27458]
[1756412614722,0.40317,4464.3,4464.2,4.01608179]
[1756412615026,0.40317,4464.3,4464.2,5.85000179]
[1756412615621,0.40317,4464.3,4464.2,5.61800179]
[1756412615822,0.40317,4464.3,4464.2,5.85000179]
[1756412621433,0.40317,4464.3,4464.2,6.25318179]
[1756412621727,0.40317,4464.3,4464.2,5.85000179]
[1756412622518,0.40317,4464.3,4464.2,5.61800179]
[1756412622722,0.40317,4464.3,4464.2,5.85000179]
[1756412623925,0.40317,4464.3,4464.2,3.38090179]
[1756412624124,2.14957,4464.3,4464.2,3.61190179]
[1756412624428,2.14957,4464.3,4464.2,2.1024]
[1756412624628,0.40322,4463.8,4463.7,35.40206738]
[1756412624833,0.40322,4463.8,4463.7,33.6222]
[1756412625131,0.40322,4463.8,4463.7,3.67650179]
[1756412625830,0.40322,4463.8,4463.7,5.91360179]
[1756412626426,0.40322,4463.8,4463.7,3.67650179]
[1756412627232,1.15532,4463.8,4463.7,3.67650179]
[1756412628333,0.40322,4463.8,4463.7,3.67650179]
[1756412628727,0.40321,4463.9,4463.8,1.19802]
[1756412628929,0.40321,4463.9,4463.8,4.07972179]
[1756412629129,0.40321,4463.9,4463.8,2.167]
[1756412630332,0.40319,4464.1,4464.0,0.7948]
[1756412630528,0.40319,4464.1,4464.0,2.5702]
[1756412630724,0.40319,4464.1,4464.0,6.31680179]
[1756412631034,0.40319,4464.1,4464.0,5.91360179]
[1756412634337,1.15529,4464.1,4464.0,3.67650179]
[1756412634739,0.40319,4464.1,4464.0,3.67650179]
[1756412638438,2.0022,4464.5,4464.0,3.67650179]
[1756412638439,0.40318,4464.2,4464.1,2.33919]
[1756412638639,0.40318,4464.2,4464.1,4.07969179]
[1756412638840,0.40318,4464.2,4464.1,2.57019]
[1756412641536,0.40317,4464.4,4464.3,0.40316]
[1756412641842,0.40317,4464.4,4464.3,4.80726]
[1756412642041,0.40317,4464.4,4464.3,2.57016]
[1756412642242,0.40317,4464.4,4464.3,2.167]
[1756412642444,0.40317,4464.4,4464.3,2.57017]
[1756412642936,1.00759,4465.9,4465.4,0.7948]
[1756412643136,2.01495,4466.4,4464.4,1.00791]
[1756412643137,1.15511,4466.1,4466.0,1.936]
[1756412643337,0.40301,4466.1,4466.0,2.115]
[1756412643534,0.403,4466.2,4466.1,1.936]
[1756412643842,0.403,4466.2,4466.1,3.67650179]
[1756412644043,0.403,4466.2,4466.1,2.167]
[1756412644343,2.1494,4466.2,4466.1,1.936]
[1756412644645,2.1494,4466.2,4466.1,2.167]
[1756412644834,6.1494,4466.2,4466.1,2.167]
[1756412645744,6.1494,4466.2,4466.1,1.936]
[1756412645943,6.1494,4466.2,4466.1,2.167]
[1756412646145,0.403,4466.2,4466.1,2.167]
[1756412652750,0.403,4466.2,4466.1,1.936]
[1756412652952,0.403,4466.2,4466.1,2.167]
[1756412654047,2.1155,4466.2,4466.1,2.167]
[1756412655347,1.1701,4466.2,4466.1,2.167]
[1756412655548,0.403,4466.2,4466.1,2.167]
[1756412656253,1.1701,4466.2,4466.1,1.936]
[1756412656454,2.1155,4466.2,4466.1,2.167]
[1756412656647,1.1701,4466.2,4466.1,2.167]
[1756412657452,2.1155,4466.2,4466.1,2.167]
[1756412657654,2.1155,4466.2,4466.1,1.936]
[1756412658055,0.40306,4465.5,4465.4,1.9349]
[1756412658258,0.40306,4465.5,4465.4,3.67540179]
[1756412658554,0.40306,4465.5,4465.4,5.91250179]
[1756412660255,0.40306,4465.5,4465.4,6.31557179]
[1756412660652,0.40306,4465.5,4465.4,4.80607]
[1756412660861,0.40306,4465.5,4465.4,6.31557179]
[1756412661153,0.40301,4466.1,4466.0,0.7754]
[1756412661355,0.40301,4466.1,4466.0,5.91250179]
[1756412661551,0.40301,4466.1,4466.0,3.67540179]
[1756412663855,0.40301,4466.1,4466.0,5.91250179]
[1756412664858,0.40301,4466.1,4466.0,6.31552179]
[1756412665458,0.231,4467.4,4467.3,1.9349]
[1756412665459,1.9205,4467.4,4467.3,1.9349]
[1756412666370,2.32339,4467.4,4467.3,1.9349]
[1756412667761,0.403,4466.2,4466.1,1.1784]
[1756412667959,0.40299,4466.4,4466.3,1.17838]
[1756412668158,0.40299,4466.4,4466.3,1.40938]
[1756412668362,0.40299,4466.4,4466.3,6.56888]
[1756412669261,0.40297,4466.6,4466.5,0.40297]
[1756412669466,0.40297,4466.6,4466.5,2.33787]
[1756412669666,0.40297,4466.6,4466.5,5.68150179]
[1756412670566,0.40297,4466.6,4466.5,5.91250179]
[1756412671162,0.40297,4466.6,4466.5,6.31547179]
[1756412671465,0.40297,4466.6,4466.5,5.91250179]
[1756412672963,0.40297,4466.6,4466.5,6.31547179]
[1756412673160,0.40297,4466.6,4466.5,5.91250179]
[1756412673858,0.40297,4466.6,4466.5,6.31547179]
[1756412674670,0.40297,4466.6,4466.5,5.91250179]
[1756412675060,0.40297,4466.6,4466.5,6.31547179]
[1756412675673,0.40295,4466.8,4466.7,0.40294]
[1756412675866,0.40295,4466.8,4466.7,4.80594]
[1756412676064,0.40295,4466.8,4466.7,5.91250179]
[1756412681172,0.40295,4466.8,4466.7,6.31545179]
[1756412682073,0.40295,4466.8,4466.7,5.91250179]
[1756412684871,0.40295,4466.8,4466.7,4.403]
[1756412685071,0.40295,4466.8,4466.7,5.91250179]
[1756412687977,0.40294,4467.0,4466.9,1.48293]
[1756412688275,0.40294,4467.0,4466.9,2.44643]
[1756412688476,0.40294,4467.0,4466.9,6.19303179]
[1756412688777,0.40294,4467.0,4466.9,5.79010179]
[1756412688976,0.40294,4467.0,4466.9,6.19304179]
[1756412689579,0.40292,4467.2,4466.9,5.05760179]
[1756412689780,0.40292,4467.2,4467.1,4.0496]
[1756412690078,0.40292,4467.2,4467.1,5.79010179]
[1756412690273,0.40292,4467.2,4467.1,2.0435]
[1756412691374,0.40292,4467.2,4467.1,2.44642]
[1756412692678,0.40292,4467.2,4467.1,2.21542]
[1756412692882,0.40292,4467.2,4467.1,1.8125]
[1756412693078,0.40292,4467.2,4467.1,2.0435]
[1756412693778,2.21122,4467.2,4467.1,2.0435]
[1756412702882,0.7594,4466.8,4466.7,0.7325]
[1756412703084,0.7594,4466.4,4466.3,2.74646455]
[1756412703288,2.21128,4466.4,4466.3,0.9635]
[1756412703483,2.40988004,4466.4,4466.3,0.9635]
[1756412703688,2.40988004,4466.4,4466.3,1.8125]
[1756412704081,2.21133,4465.9,4465.8,1.8125]
[1756412704283,0.60163004,4465.9,4465.8,2.0435]
[1756412704881,2.40993004,4465.9,4465.8,1.8125]
[1756412705481,2.40993004,4465.9,4465.8,2.0435]
[1756412707086,0.7335,4465.6,4465.5,0.7492]
[1756412707290,2.02520004,4465.6,4465.5,0.9802]
[1756412707491,2.42825004,4465.6,4465.5,0.9802]
[1756412707691,2.22965,4465.6,4465.5,2.0465]
[1756412707892,2.42791564,4465.6,4465.5,2.0465]
[1756412709495,1.49619,4465.2,4465.1,33.3323]
[1756412709789,2.42795564,4465.2,4465.1,1.8155]
[1756412710090,2.42795564,4465.2,4465.1,2.0465]
[1756412710288,1.33485564,4465.2,4465.1,2.0465]
[1756412710489,0.60135564,4465.2,4465.1,2.0465]
[1756412711595,0.19826564,4465.2,4465.1,2.0465]
[1756412713794,0.60135564,4465.2,4465.1,2.0465]
[1756412714397,0.60135564,4465.2,4465.1,2.4496]
[1756412714603,0.19826564,4465.2,4465.1,2.4496]
[1756412715702,0.61207565,4465.2,4465.1,2.4496]
[1756412718303,0.61199725,4465.2,4465.1,2.4496]
[1756412719002,0.61199725,4465.2,4465.1,2.0465]
[1756412719595,0.61199725,4465.2,4465.1,2.4496]
[1756412719998,0.61199725,4465.2,4465.1,2.0465]
[1756412720395,0.61199725,4465.2,4465.1,1.8155]
[1756412720600,2.43859725,4465.2,4465.1,1.8155]
[1756412720795,0.7335,4464.6,4464.5,1.8155]
[1756412721002,2.43864725,4464.6,4464.5,4.2836]
[1756412721204,2.43864725,4464.6,4464.5,5.56210179]
[1756412721505,2.43864725,4464.6,4464.5,5.79310179]
[1756412722605,0.61204725,4464.6,4464.5,5.79310179]
[1756412724505,0.61204725,4464.6,4464.5,6.19625179]
[1756412724800,0.20890725,4464.6,4464.5,6.19625179]
[1756412725107,0.40307,4465.4,4465.3,2.21858]
[1756412725307,0.61200263,4465.4,4465.3,2.44958]
[1756412725998,0.61200263,4465.4,4465.3,2.0465]
[1756412727306,2.43860263,4465.4,4465.3,2.0465]
[1756412728206,2.43860263,4465.4,4465.3,2.44958]
[1756412728609,2.22967,4465.4,4465.3,2.0465]
[1756412728907,2.43875077,4465.4,4465.3,2.0465]
[1756412729503,1.34565077,4465.4,4465.3,2.44958]
[1756412730009,0.20908077,4465.4,4465.3,2.44958]
[1756412739118,0.40304,4465.7,4465.6,0.687]
[1756412739322,0.59798303,4465.7,4465.6,0.917]
[1756412739617,0.59798303,4465.7,4465.6,1.996]
[1756412740316,0.40298,4466.5,4466.4,2.16898]
[1756412740514,1.07228,4466.5,4466.4,2.39898]
[1756412740716,2.17558,4466.5,4466.4,2.39898]
[1756412741307,0.40296,4466.6,4466.4,1.996]
[1756412741513,2.17552,4467.1,4467.0,1.766]
[1756412741713,2.17552,4467.1,4467.0,1.996]
[1756412745115,1.7726,4467.1,4467.0,1.996]
[1756412745914,0.6693,4467.1,4467.0,1.996]
[1756412746114,0.40291,4467.2,4467.1,1.08992]
[1756412746315,0.40291,4467.2,4467.1,2.16892]
[1756412746620,2.17549,4467.4,4467.3,1.0899]
[1756412746825,2.17547,4467.7,4467.6,1.08987]
[1756412747025,0.40287,4467.7,4467.6,2.39887]
[1756412747218,1.07215,4467.9,4467.8,0.687]
[1756412747422,2.17545,4467.9,4467.8,1.996]
[1756412747726,0.6693,4467.9,4467.8,1.996]
[1756412747920,2.17543,4468.1,4468.0,1.766]
[1756412748120,2.17543,4468.1,4468.0,1.996]
[1756412750328,1.07213,4468.1,4468.0,1.996]
[1756412750531,0.40283,4468.1,4468.0,1.996]
[1756412751033,1.07213,4468.1,4468.0,1.996]
[1756412751233,2.17543,4468.1,4468.0,1.996]
[1756412753435,2.17545,4467.8,4467.7,1.766]
[1756412753636,2.17545,4467.8,4467.7,1.996]
[1756412753843,1.7726,4467.4,4467.3,1.766]
[1756412754041,1.7726,4467.4,4467.3,3.50550179]
[1756412754242,1.7726,4467.4,4467.3,1.996]
[1756412754541,2.17549,4467.4,4467.3,2.3989]
[1756412754844,2.17549,4467.4,4467.3,1.996]
[1756412755032,1.1033,4468.0,4467.4,1.079]
[1756412755238,1.1033,4468.4,4468.0,1.079]
[1756412755435,2.1754,4468.4,4468.3,1.766]
[1756412756640,0.4028,4468.4,4468.3,1.766]
[1756412757043,2.1754,4468.4,4468.3,1.766]
[1756412758340,0.4028,4468.5,4468.4,1.766]
[1756412758540,1.1033,4469.4,4468.5,1.079]
[1756412758741,0.40276,4468.9,4468.8,1.766]
[1756412758948,0.40276,4468.9,4468.8,1.996]
[1756412759345,2.17536,4468.9,4468.8,1.996]
[1756412764051,0.40284,4468.0,4467.9,0.687]
[1756412764344,2.17544,4468.0,4467.9,3.50550179]
[1756412764549,2.17544,4468.0,4467.9,5.74260179]
[1756412765048,2.17543,4468.1,4468.0,1.766]
[1756412765249,2.17543,4468.1,4468.0,3.50550179]
[1756412765548,1.07218,4467.6,4467.5,1.766]
[1756412765749,2.17548,4467.6,4467.5,1.996]
[1756412765946,2.17548,4467.6,4467.5,5.74260179]
[1756412766145,1.07218,4467.6,4467.5,5.74260179]
[1756412766950,2.15958,4467.6,4467.5,5.74260179]
[1756412768450,2.15958,4467.6,4467.5,5.51260179]
[1756412768650,2.15958,4467.6,4467.5,5.74260179]
[1756412769449,2.15958,4467.6,4467.5,5.51260179]
[1756412769641,2.15958,4467.6,4467.5,5.74260179]
[1756412770042,2.15958,4467.6,4467.5,1.766]
[1756412770242,1.7922,4467.0,4466.9,1.7701]
[1756412770947,1.1078,4466.3,4466.2,1.7701]
[1756412771143,2.1952,4466.3,4466.2,4.2372]
[1756412771345,2.1952,4466.3,4466.2,2.0001]
[1756412771746,0.40307,4465.4,4465.3,3.77813801]
[1756412772052,0.40307,4465.4,4465.3,3.50960179]
[1756412772350,2.19527,4465.4,4465.3,2.0001]
[1756412773243,2.19527,4465.4,4465.3,1.7701]
[1756412773442,2.19527,4465.4,4465.3,2.0001]
[1756412777045,0.40307,4465.4,4465.3,2.0001]
[1756412777247,0.40307,4465.4,4465.3,0.9553]
[1756412777846,0.40307,4465.4,4465.3,2.0001]
[1756412780252,0.40306,4465.5,4465.4,2.17317]
[1756412780453,0.40306,4465.5,4465.4,3.27960179]
[1756412780750,0.40306,4465.5,4465.4,5.51670179]
[1756412781351,2.19526,4465.5,4465.4,5.51670179]
[1756412781747,0.40306,4465.5,4465.4,5.51670179]
[1756412785553,0.40318,4464.2,4464.1,0.7253]
[1756412785851,2.19538,4464.2,4464.1,0.9553]
[1756412786353,0.40318,4464.2,4464.1,0.9553]
[1756412787451,0.40318,4464.2,4464.1,2.0001]
[1756412788052,1.10798,4464.2,4464.1,2.0001]
[1756412788245,2.19538,4464.2,4464.1,2.0001]
[1756412788952,1.10798,4464.2,4464.1,2.0001]
[1756412789153,2.19538,4464.2,4464.1,2.0001]
[1756412789343,1.10798,4464.2,4464.1,2.0001]
[1756412789948,0.40318,4464.2,4464.1,2.0001]
[1756412791359,0.40317,4464.4,4464.3,0.7253]
[1756412791551,0.40317,4464.4,4464.3,2.0001]
[1756412792355,2.19537,4464.4,4464.3,2.0001]
[1756412797159,0.40315,4464.5,4464.4,1.08216]
[1756412797361,2.08592,4464.9,4464.8,1.7305]
[1756412797559,2.08592,4464.9,4464.8,4.1976]
[1756412797766,0.40311,4465.0,4464.9,1.08211]
[1756412798061,1.39089,4465.2,4465.1,0.679]
[1756412798261,34.26669,4467.0,4465.1,0.679]
[1756412798262,1.6828,4465.7,4465.6,0.679]
[1756412798468,2.08584,4465.7,4465.6,1.9605]
[1756412799757,1.09808,4465.3,4465.2,1.7305]
[1756412799967,2.08588,4465.3,4465.2,1.9605]
[1756412800262,2.08588,4465.3,4465.2,5.70710179]
[1756412803569,2.08588,4465.3,4465.2,5.47710179]
[1756412803770,2.08588,4465.3,4465.2,5.70710179]
[1756412807770,2.08588,4465.3,4465.2,6.11019179]
[1756412810368,2.08588,4465.3,4465.2,5.70710179]
[1756412810671,2.08588,4465.3,4465.2,6.11019179]
[1756412810874,2.08588,4465.3,4465.2,5.88019179]
[1756412811070,2.08588,4465.3,4465.2,6.11019179]
[1756412811573,2.08588,4465.3,4465.2,5.70710179]
[1756412811874,2.08588,4465.3,4465.2,6.11019179]
[1756412814074,2.08588,4465.3,4465.2,5.70710179]
[1756412814669,2.08588,4465.3,4465.2,6.11019179]
[1756412816276,2.08588,4465.3,4465.2,5.88019179]
[1756412816477,2.08588,4465.3,4465.2,5.70710179]
[1756412817581,2.08588,4465.3,4465.2,6.11019179]
[1756412818281,2.08588,4465.3,4465.2,5.70710179]
[1756412818678,2.08588,4465.3,4465.2,6.11019179]
[1756412819279,2.08588,4465.3,4465.2,5.88019179]
[1756412819480,2.08588,4465.3,4465.2,3.87309179]
[1756412819680,2.08588,4465.3,4465.2,6.11019179]
[1756412820471,2.08588,4465.3,4465.2,5.70710179]
[1756412821079,2.08588,4465.3,4465.2,5.47710179]
[1756412821282,2.08588,4465.3,4465.2,5.70710179]
[1756412821883,2.08592,4464.8,4464.7,1.7305]
[1756412822177,2.08591,4465.0,4464.9,1.7305]
[1756412822384,2.08591,4465.0,4464.9,1.9605]
[1756412822682,2.08591,4465.0,4464.9,3.47000179]
[1756412823282,0.40311,4465.0,4464.9,6.11022179]
[1756412823485,2.08591,4465.0,4464.9,5.70710179]
[1756412825490,1.09814,4464.6,4464.5,2.68703801]
[1756412825689,2.08594,4464.6,4464.5,1.9605]
[1756412825983,2.08594,4464.6,4464.5,5.70710179]
[1756412826988,0.40314,4464.6,4464.5,6.11025179]
[1756412828588,1.35924,4464.6,4464.5,5.47710179]
[1756412828787,2.05164,4464.6,4464.5,5.70710179]
[1756412830293,1.09554,4464.6,4464.5,5.70710179]
[1756412830493,2.05164,4464.6,4464.5,5.70710179]
[1756412830895,2.05155,4465.6,4465.5,0.7168]
[1756412831090,0.40305,4465.6,4465.5,1.9248]
[1756412832398,1.35915,4465.6,4465.5,1.9248]
[1756412834298,2.05155,4465.6,4465.5,1.9248]
[1756412834894,2.05157,4465.4,4465.3,1.6948]
[1756412835099,2.05157,4465.4,4465.3,0.23]
[1756412835691,1.6485,4465.4,4465.0,0.978]
[1756412835892,2.0516,4465.1,4465.0,2.22630179]
[1756412836092,2.0516,4465.1,4465.0,0.23]
[1756412836493,2.0516,4465.1,4465.0,1.9248]
[1756412837295,2.05163,4464.7,4464.6,2.00803801]
[1756412837495,2.05163,4464.7,4464.6,0.23]
[1756412837899,1.35926,4464.4,4464.3,33.239]
[1756412838202,1.35926,4464.4,4464.3,33.469]
[1756412838602,1.35926,4464.4,4464.3,33.239]
[1756412838801,1.35926,4464.4,4464.3,33.469]
[1756412839703,2.05166,4464.4,4464.3,1.9248]
[1756412842591,2.05166,4464.4,4464.3,1.6948]
[1756412842791,2.05166,4464.4,4464.3,1.9248]
[1756412845399,0.4032,4464.0,4463.9,3.70283801]
[1756412845599,2.0517,4464.0,4463.9,1.6948]
[1756412847304,1.09561,4463.9,4463.8,0.229]
[1756412847504,0.40322,4463.7,4463.6,1.6948]
[1756412847804,2.05172,4463.7,4463.6,1.6948]
[1756412848004,2.05172,4463.7,4463.6,1.9238]
[1756412849001,2.05172,4463.7,4463.6,0.9458]
[1756412849701,2.05172,4463.7,4463.6,0.229]
[1756412849902,2.05172,4463.7,4463.6,1.6948]
[1756412854309,1.6485,4463.3,4463.2,1.6948]
[1756412854608,2.05176,4463.3,4463.2,3.1829]
[1756412854809,2.05176,4463.3,4463.2,1.9238]
[1756412857605,2.05176,4463.3,4463.2,1.6948]
[1756412857905,2.05176,4463.3,4463.2,1.9238]
[1756412864912,0.40327,4463.2,4463.1,32.259]
[1756412865218,1.00812,4463.5,4462.4,2.00803801]
[1756412865219,0.40332,4462.6,4462.5,1.6563]
[1756412865513,0.40332,4462.6,4462.5,3.39480179]
[1756412865817,2.06862,4462.6,4462.5,5.63190179]
[1756412866017,2.06862,4462.6,4462.5,0.229]
[1756412866517,2.06864,4462.4,4462.3,1.6563]
[1756412866717,2.06864,4462.4,4462.3,3.16580179]
[1756412867015,2.06867,4462.1,4462.0,1.6563]
[1756412867213,2.06867,4462.1,4462.0,1.8853]
[1756412867407,2.06867,4462.1,4462.0,5.63190179]
[1756412868412,2.06869,4461.8,4461.7,3.89333801]
[1756412868611,2.06869,4461.8,4461.7,6.13043801]
[1756412868808,2.06869,4461.8,4461.7,4.1224]
[1756412869121,2.06869,4461.8,4461.7,1.6563]
[1756412869307,2.06869,4461.8,4461.6,0.00253773]
[1756412869512,0.9875,4461.7,4461.6,3.74913952]
[1756412869714,1.6653,4461.7,4461.6,4.40643952]
[1756412869916,1.6653,4461.7,4461.6,1.65883773]
[1756412870512,1.6653,4461.7,4461.6,0.6573]
[1756412870716,1.6653,4461.5,4461.4,1.8853]
[1756412871119,1.6653,4461.5,4461.4,0.8863]
[1756412871314,1.6653,4461.5,4461.4,0.229]
[1756412871919,1.6653,4461.5,4461.4,1.8853]
[1756412872720,1.6653,4461.5,4461.4,0.8863]
[1756412873215,1.6653,4461.5,4461.4,1.8853]
[1756412875723,1.6653,4461.5,4461.4,4.1224]
[1756412875921,0.40342,4461.6,4461.5,1.6563]
[1756412876123,0.40342,4461.6,4461.5,5.62704179]
[1756412876317,0.40342,4461.6,4461.5,5.40290179]
[1756412880426,0.40342,4461.6,4461.5,5.80632179]
[1756412880620,0.4034,4461.8,4461.7,2.0597]
[1756412880821,0.4034,4461.8,4461.7,4.1224]
[1756412881118,0.4034,4461.8,4461.7,5.63190179]
[1756412884330,0.4034,4461.8,4461.7,6.03530179]
[1756412884532,2.06861,4462.7,4462.6,1.6563]
[1756412884735,2.06861,4462.7,4462.6,1.8853]
[1756412885227,0.40331,4462.7,4462.6,1.8853]
[1756412885432,1.39081,4462.7,4462.6,1.8853]
[1756412885630,2.06861,4462.7,4462.6,1.8853]
[1756412893532,1.6309,4463.4,4463.3,2.05666]
[1756412893727,1.20442128,4465.3,4463.3,2.05666]
[1756412893728,1.00771,4465.3,4463.9,0.6377]
[1756412893932,0.9679,4464.8,4464.1,0.6377]
[1756412894136,2.03403,4464.8,4464.7,1.6534]
[1756412894637,1.6309,4464.8,4464.7,3.16290179]
[1756412898232,2.03398,4465.3,4465.2,1.6534]
[1756412898436,2.03401,4465.0,4464.9,3.8905]
[1756412898637,1.6309,4465.0,4464.9,4.1195]
[1756412898836,1.00756,4466.0,4464.9,2.37620179]
[1756412898837,1.37098,4465.3,4464.9,2.37620179]
[1756412899033,2.03398,4465.3,4465.2,1.6534]
[1756412899539,1.6309,4465.3,4465.2,1.6534]
[1756412900037,0.9679,4465.1,4464.9,0.229]
[1756412900238,2.034,4465.1,4465.0,2.52520179]
[1756412900637,2.034,4465.1,4465.0,3.16290179]